fUSD/lending_fUSD_20250806
["ID","MTS","AMOUNT","RATE_DAILY","PERIOD"]
[377597315,1754448822775,-400.0,0.0003863,14]
[377597316,1754448822786,-650.36,0.0003863,14]
[377597317,1754448822796,-1923.25,0.0003863,14]
[377597318,1754448822805,-2020.14,0.0003863,14]
[377597319,1754448822814,-3412.85,0.0003863,14]
[377597320,1754448822823,-2285.89,0.0003863,14]
[377597321,1754448822832,-444.68,0.0003863,14]
[377597322,1754448822842,-400.0,0.0003863,14]
[377597323,1754448822851,-400.0,0.0003863,14]
[377597324,1754448822861,-400.0,0.0003863,14]
[377597325,1754448822870,-442.62936137,0.0003863,14]
[377597326,1754448822880,-187.38690494,0.0003863,14]
[377597327,1754448822889,-1704.34,0.0003863,14]
[377597328,1754448822898,-981.32,0.0003863,14]
[377597329,1754448822910,-422.51,0.0003863,14]
[377597330,1754448822920,-1217.8,0.0003863,14]
[377597331,1754448822929,-400.0,0.0003863,14]
[377597332,1754448822938,-719.56,0.0003863,14]
[377597333,1754448822949,-426.16,0.0003863,14]
[377597334,1754448822959,-2284.92,0.0003863,14]
[377597335,1754448822969,-2049.87,0.0003863,14]
[377597336,1754448822979,-400.0,0.0003863,14]
[377597337,1754448822991,-400.0,0.0003863,14]
[377597338,1754448823000,-438.34136226,0.0003863,14]
[377597339,1754448823009,-1324.35,0.0003863,14]
[377597340,1754448823019,-400.0,0.0003863,14]
[377597341,1754448823028,-400.0,0.0003863,14]
[377597342,1754448823038,-536.81,0.0003863,14]
[377597343,1754448823047,-1978.73,0.0003863,14]
[377597344,1754448823056,-2066.75,0.0003863,14]
[377597345,1754448823065,-400.0,0.0003863,14]
[377597346,1754448823074,-400.0,0.0003863,14]
[377597347,1754448823083,-2370.33,0.0003863,14]
[377597348,1754448823092,-618.59,0.0003863,14]
[377597349,1754448823101,-1918.49,0.0003863,14]
[377597350,1754448823110,-1380.46,0.0003863,14]
[377597351,1754448823119,-400.0,0.0003863,14]
[377597352,1754448823128,-898.87,0.0003863,14]
[377597353,1754448823138,-681.38,0.0003863,14]
[377597354,1754448823147,-1159.52,0.0003863,14]
[377597355,1754448823156,-2526.57,0.0003863,14]
[377597356,1754448823166,-400.0,0.0003863,14]
[377597357,1754448823175,-589.89,0.0003863,14]
[377597358,1754448823185,-400.0,0.0003863,14]
[377597359,1754448823194,-481.3,0.0003863,14]
[377597360,1754448823204,-1943.34,0.0003863,14]
[377597361,1754448823214,-771.1,0.0003863,14]
[377597362,1754448823224,-738.49,0.0003863,14]
[377597363,1754448823233,-1101.66,0.0003863,14]
[377597364,1754448823243,-2119.77,0.0003863,14]
[377597365,1754448823252,-400.0,0.0003863,14]
[377597366,1754448823261,-2486.07,0.0003863,14]
[377597367,1754448823271,-400.0,0.0003863,14]
[377597368,1754448823280,-400.0,0.0003863,14]
[377597369,1754448823290,-825.89,0.0003863,14]
[377597370,1754448823299,-400.0,0.0003863,14]
[377597371,1754448823309,-1301.09,0.0003863,14]
[377597372,1754448823319,-400.0,0.0003863,14]
[377597373,1754448823328,-400.0,0.0003863,14]
[377597374,1754448823338,-400.0,0.0003863,14]
[377597375,1754448823347,-400.0,0.0003863,14]
[377597376,1754448823356,-400.0,0.0003863,14]
[377597377,1754448823366,-681.33,0.0003863,14]
[377597378,1754448823376,-424.16,0.0003863,14]
[377597379,1754448823386,-1940.75,0.0003863,14]
[377597380,1754448823396,-400.0,0.0003863,14]
[377597381,1754448823405,-400.0,0.0003863,14]
[377597382,1754448823414,-1594.04,0.0003863,14]
[377597383,1754448823424,-2332.46,0.0003863,14]
[377597384,1754448823433,-400.0,0.0003863,14]
[377597385,1754448823442,-370.0,0.0003863,14]
[377597386,1754448823451,-1556.67,0.0003863,14]
[377597387,1754448823461,-400.0,0.0003863,14]
[377597388,1754448823470,-2008.42,0.0003863,14]
[377597389,1754448823479,-803.41,0.0003863,14]
[377597390,1754448823489,-1049.45,0.0003863,14]
[377597391,1754448823498,-2287.11,0.0003863,14]
[377597392,1754448823508,-3089.8,0.0003863,14]
[377597393,1754448823517,-2094.9,0.0003863,14]
[377597394,1754448823527,-2284.3,0.0003863,14]
[377597395,1754448823536,-1760.6,0.0003863,14]
[377597396,1754448823546,-590.2,0.0003863,14]
[377597397,1754448823555,-524.39,0.0003863,14]
[377597398,1754448823564,-904.68,0.0003863,14]
[377597399,1754448823574,-538.64,0.0003863,14]
[377597400,1754448823583,-400.0,0.0003863,14]
[377597401,1754448823592,-477.4,0.0003863,14]
[377597402,1754448823602,-400.0,0.0003863,14]
[377597403,1754448823611,-473.05,0.0003863,14]
[377597404,1754448823620,-1562.45,0.0003863,14]
[377597405,1754448823630,-681.47,0.0003863,14]
[377597406,1754448823639,-1343.91,0.0003863,14]
[377597407,1754448823648,-1123.2,0.0003863,14]
[377597408,1754448823657,-400.0,0.0003863,14]
[377597409,1754448823667,-402.35,0.0003863,14]
[377597410,1754448823676,-400.0,0.0003863,14]
[377597411,1754448823685,-992.23,0.0003863,14]
[377597412,1754448823695,-400.0,0.0003863,14]
[377597413,1754448823704,-905.29,0.0003863,14]
[377597414,1754448823713,-400.0,0.0003863,14]
[377597415,1754448823723,-237.42330142,0.0003863,14]
[377597416,1754448823732,-400.0,0.0003863,14]
[377597417,1754448823742,-1620.39,0.0003863,14]
[377597418,1754448823751,-1647.26,0.0003863,14]
[377597419,1754448823761,-2673.63,0.0003863,14]
[377597420,1754448823770,-833.81,0.0003863,14]
[377597421,1754448823780,-423.93,0.0003863,14]
[377597422,1754448823791,-400.0,0.0003863,14]
[377597423,1754448823800,-400.0,0.0003863,14]
[377597424,1754448823812,-3032.43,0.0003863,14]
[377597425,1754448823821,-659.8,0.0003863,14]
[377597426,1754448823830,-427.02373182,0.0003863,14]
[377597427,1754448823840,-2718.79,0.0003863,14]
[377597428,1754448823850,-400.0,0.0003863,14]
[377597429,1754448823860,-537.68,0.0003863,14]
[377597430,1754448823870,-400.0,0.0003863,14]
[377597431,1754448823880,-1352.85,0.0003863,14]
[377597432,1754448823901,-652.53,0.0003863,14]
[377597433,1754448823916,-591.66,0.0003863,14]
[377597434,1754448823925,-1194.25,0.0003863,14]
[377597435,1754448823935,-1325.26,0.0003863,14]
[377597436,1754448823945,-687.17,0.0003863,14]
[377597437,1754448823955,-400.0,0.0003863,14]
[377597438,1754448823965,-400.0,0.0003863,14]
[377597439,1754448823974,-2118.84,0.0003863,14]
[377597440,1754448823984,-1193.92,0.0003863,14]
[377597441,1754448823994,-400.0,0.0003863,14]
[377597442,1754448824003,-3219.58,0.0003863,14]
[377597443,1754448824013,-400.0,0.0003863,14]
[377597444,1754448824023,-2996.94,0.0003863,14]
[377597445,1754448824033,-400.0,0.0003863,14]
[377597446,1754448824043,-400.0,0.0003863,14]
[377597447,1754448824054,-509.96,0.0003863,14]
[377597448,1754448824067,-825.46,0.0003863,14]
[377597449,1754448824077,-2113.04,0.0003863,14]
[377597450,1754448824087,-2100.37,0.0003863,14]
[377597451,1754448824098,-400.0,0.0003863,14]
[377597452,1754448824109,-1273.79,0.0003863,14]
[377597453,1754448824118,-445.22,0.0003863,14]
[377597454,1754448824129,-400.0,0.0003863,14]
[377597455,1754448824138,-2053.25,0.0003863,14]
[377597456,1754448824147,-400.0,0.0003863,14]
[377597457,1754448824157,-1931.44,0.0003863,14]
[377597458,1754448824166,-400.0,0.0003863,14]
[377597459,1754448824176,-400.0,0.0003863,14]
[377597460,1754448824186,-590.55,0.0003863,14]
[377597461,1754448824195,-1620.16,0.0003863,14]
[377597462,1754448824205,-457.71,0.0003863,14]
[377597463,1754448824216,-2044.76,0.0003863,14]
[377597464,1754448824225,-215.89285914,0.0003863,14]
[377597465,1754448824235,-1325.52,0.0003863,14]
[377597466,1754448824245,-3399.61,0.0003863,14]
[377597467,1754448824255,-2493.6,0.0003863,14]
[377597468,1754448824264,-523.74292213,0.0003863,14]
[377597469,1754448824273,-400.0,0.0003863,14]
[377597470,1754448824283,-1026.17,0.0003863,14]
[377597471,1754448824292,-486.69,0.0003863,14]
[377597472,1754448824302,-400.0,0.0003863,14]
[377597473,1754448824311,-723.29,0.0003863,14]
[377597474,1754448824321,-651.88,0.0003863,14]
[377597475,1754448824332,-400.0,0.0003863,14]
[377597476,1754448824341,-903.69,0.0003863,14]
[377597477,1754448824351,-1532.92,0.0003863,14]
[377597478,1754448824363,-672.26,0.0003863,14]
[377597479,1754448824374,-400.0,0.0003863,14]
[377597480,1754448824384,-400.0,0.0003863,14]
[377597481,1754448824393,-1382.08,0.0003863,14]
[377597482,1754448824403,-400.0,0.0003863,14]
[377597483,1754448824413,-2614.37,0.0003863,14]
[377597484,1754448824423,-400.0,0.0003863,14]
[377597485,1754448824432,-677.89,0.0003863,14]
[377597486,1754448824441,-1383.95,0.0003863,14]
[377597487,1754448824451,-400.0,0.0003863,14]
[377597488,1754448824461,-400.0,0.0003863,14]
[377597489,1754448824470,-579.93,0.0003863,14]
[377597490,1754448824480,-400.0,0.0003863,14]
[377597491,1754448824490,-717.13,0.0003863,14]
[377597492,1754448824499,-832.0,0.0003863,14]
[377597493,1754448824509,-1028.28,0.0003863,14]
[377597494,1754448824520,-400.0,0.0003863,14]
[377597495,1754448824529,-1985.89,0.0003863,14]
[377597496,1754448824539,-2778.5,0.0003863,14]
[377597497,1754448824549,-400.0,0.0003863,14]
[377597498,1754448824559,-400.0,0.0003863,14]
[377597499,1754448824568,-2015.29,0.0003863,14]
[377597500,1754448824577,-3708.79,0.0003863,14]
[377597501,1754448824587,-752.93,0.0003863,14]
[377597502,1754448824596,-400.0,0.0003863,14]
[377597503,1754448824606,-262.17219112,0.0003863,14]
[377597504,1754448824615,-735.15,0.0003863,14]
[377597505,1754448824625,-2553.57,0.0003863,14]
[377597506,1754448824635,-400.0,0.0003863,14]
[377597507,1754448824644,-1607.76,0.0003863,14]
[377597508,1754448824654,-374.14,0.0003863,14]
[377597509,1754448824663,-400.0,0.0003863,14]
[377597510,1754448824672,-1838.27,0.0003863,14]
[377597511,1754448824682,-757.96,0.0003863,14]
[377597512,1754448824691,-2459.31,0.0003863,14]
[377597513,1754448824701,-400.0,0.0003863,14]
[377597514,1754448824712,-2248.73,0.0003863,14]
[377597515,1754448824724,-865.96,0.0003863,14]
[377597516,1754448824735,-842.75,0.0003863,14]
[377597517,1754448824745,-1141.46,0.0003863,14]
[377597518,1754448824755,-2023.14,0.0003863,14]
[377597519,1754448824764,-1074.3,0.0003863,14]
[377597520,1754448824775,-1094.22,0.0003863,14]
[377597521,1754448824784,-1520.4,0.0003863,14]
[377597522,1754448824796,-1903.84,0.0003863,14]
[377597523,1754448824807,-400.0,0.0003863,14]
[377597524,1754448824816,-715.12,0.0003863,14]
[377597525,1754448824826,-400.0,0.0003863,14]
[377597526,1754448824836,-1769.99,0.0003863,14]
[377597527,1754448824846,-3013.96,0.0003863,14]
[377597528,1754448824857,-1189.15,0.0003863,14]
[377597529,1754448824868,-400.0,0.0003863,14]
[377597530,1754448824878,-450.72,0.0003863,14]
[377597531,1754448824888,-1853.29,0.0003863,14]
[377597532,1754448824898,-414.57,0.0003863,14]
[377597533,1754448824911,-2171.13,0.0003863,14]
[377597534,1754448824921,-492.36,0.0003863,14]
[377597535,1754448824931,-1432.94,0.0003863,14]
[377597536,1754448825224,-2772.54,0.0003863,14]
[377597537,1754448825248,-400.0,0.0003863,14]
[377597538,1754448825259,-660.15,0.0003863,14]
[377597539,1754448825270,-687.86,0.0003863,14]
[377597540,1754448825281,-1512.02,0.0003863,14]
[377597541,1754448825290,-1752.0,0.0003863,14]
[377597542,1754448825300,-1827.77,0.0003863,14]
[377597543,1754448825310,-399.14640322,0.0003863,14]
[377597544,1754448825320,-2123.08,0.0003863,14]
[377597545,1754448825330,-710.17,0.0003863,14]
[377597546,1754448825341,-400.0,0.0003863,14]
[377597547,1754448825350,-2320.18,0.0003863,14]
[377597548,1754448825359,-541.8,0.0003863,14]
[377597549,1754448825370,-400.0,0.0003863,14]
[377597550,1754448825380,-3809.64,0.0003863,14]
[377597551,1754448825389,-1290.75,0.0003863,14]
[377597552,1754448825399,-2988.22,0.0003863,14]
[377597553,1754448825408,-432.19,0.0003863,14]
[377597554,1754448825419,-650.32,0.0003863,14]
[377597555,1754448825428,-2067.35,0.0003863,14]
[377597556,1754448825438,-786.46,0.0003863,14]
[377597557,1754448825448,-1893.56,0.0003863,14]
[377597558,1754448825460,-436.89,0.0003863,14]
[377597559,1754448825470,-357.41792442,0.0003863,14]
[377597560,1754448825480,-1091.29,0.0003863,14]
[377597561,1754448825491,-2121.86,0.0003863,14]
[377597562,1754448825502,-2572.93,0.0003863,14]
[377597563,1754448825513,-403.94,0.0003863,14]
[377597564,1754448825524,-1090.58,0.0003863,14]
[377597565,1754448825533,-2572.33,0.0003863,14]
[377597566,1754448825542,-1310.5,0.0003863,14]
[377597567,1754448825552,-1680.95,0.0003863,14]
[377597568,1754448825561,-541.54,0.0003863,14]
[377597569,1754448825570,-1082.92,0.0003863,14]
[377597570,1754448825579,-615.57,0.0003863,14]
[377597571,1754448825589,-569.78,0.0003863,14]
[377597572,1754448825598,-456.45,0.0003863,14]
[377597573,1754448825608,-1882.26,0.0003863,14]
[377597574,1754448825617,-1821.93,0.0003863,14]
[377597575,1754448825626,-1272.84,0.0003863,14]
[377597576,1754448825635,-2393.94,0.0003863,14]
[377597577,1754448825644,-819.87,0.0003863,14]
[377597578,1754448825654,-472.45,0.0003863,14]
[377597579,1754448825663,-400.0,0.0003863,14]
[377597580,1754448825672,-571.97,0.0003863,14]
[377597581,1754448825682,-437.6074543,0.0003863,14]
[377597582,1754448825691,-1723.53,0.0003863,14]
[377597583,1754448825700,-400.0,0.0003863,14]
[377597584,1754448825709,-2205.0,0.0003863,14]
[377597585,1754448825719,-2459.29,0.0003863,14]
[377597586,1754448825728,-1328.89,0.0003863,14]
[377597587,1754448825738,-400.0,0.0003863,14]
[377597588,1754448825747,-1450.07,0.0003863,14]
[377597589,1754448825756,-400.0,0.0003863,14]
[377597590,1754448825766,-498.72,0.0003863,14]
[377597591,1754448825775,-400.0,0.0003863,14]
[377597592,1754448825784,-400.0,0.0003863,14]
[377597593,1754448825793,-2050.67,0.0003863,14]
[377597594,1754448825803,-1998.0,0.0003863,14]
[377597595,1754448825812,-2177.61,0.0003863,14]
[377597596,1754448825822,-565.91,0.0003863,14]
[377597597,1754448825832,-2230.94,0.0003863,14]
[377597598,1754448825842,-400.0,0.0003863,14]
[377597599,1754448825851,-1023.05,0.0003863,14]
[377597600,1754448825860,-1541.91,0.0003863,14]
[377597601,1754448825869,-1947.18,0.0003863,14]
[377597602,1754448825879,-518.06,0.0003863,14]
[377597603,1754448825889,-1701.37,0.0003863,14]
[377597604,1754448825899,-1743.92,0.0003863,14]
[377597605,1754448825911,-1840.41,0.0003863,14]
[377597606,1754448825921,-3617.37,0.0003863,14]
[377597607,1754448825930,-1293.69,0.0003863,14]
[377597608,1754448825939,-400.0,0.0003863,14]
[377597609,1754448825951,-400.0,0.0003863,14]
[377597610,1754448825960,-2851.05,0.0003863,14]
[377597611,1754448825970,-1163.86,0.0003863,14]
[377597612,1754448825979,-2062.42,0.0003863,14]
[377597613,1754448825989,-400.0,0.0003863,14]
[377597614,1754448825998,-400.0,0.0003863,14]
[377597615,1754448826008,-1802.74,0.0003863,14]
[377597616,1754448826018,-400.0,0.0003863,14]
[377597617,1754448826029,-2082.15,0.0003863,14]
[377597618,1754448826040,-2004.98,0.0003863,14]
[377597619,1754448826049,-1704.62,0.0003863,14]
[377597620,1754448826059,-578.97,0.0003863,14]
[377597621,1754448826070,-1140.6,0.0003863,14]
[377597622,1754448826080,-2059.67,0.0003863,14]
[377597623,1754448826091,-400.0,0.0003863,14]
[377597624,1754448826103,-400.0,0.0003863,14]
[377597625,1754448826112,-400.0,0.0003863,14]
[377597626,1754448826125,-400.0,0.0003863,14]
[377597627,1754448826134,-400.0,0.0003863,14]
[377597628,1754448826144,-2008.93,0.0003863,14]
[377597629,1754448826154,-1042.45,0.0003863,14]
[377597630,1754448826163,-400.0,0.0003863,14]
[377597631,1754448826173,-2421.14,0.0003863,14]
[377597632,1754448826182,-1854.33,0.0003863,14]
[377597633,1754448826192,-904.89,0.0003863,14]
[377597634,1754448826202,-1949.77,0.0003863,14]
[377597635,1754448826211,-717.97,0.0003863,14]
[377597636,1754448826220,-439.26,0.0003863,14]
[377597637,1754448826232,-944.69,0.0003863,14]
[377597638,1754448826244,-400.0,0.0003863,14]
[377597639,1754448826256,-995.71,0.0003863,14]
[377597640,1754448826267,-1533.65,0.0003863,14]
[377597641,1754448826278,-564.92,0.0003863,14]
[377597642,1754448826288,-400.0,0.0003863,14]
[377597643,1754448826297,-1068.1,0.0003863,14]
[377597644,1754448826307,-1225.03,0.0003863,14]
[377597645,1754448826319,-400.0,0.0003863,14]
[377597646,1754448826329,-400.0,0.0003863,14]
[377597647,1754448826338,-423.39,0.0003863,14]
[377597648,1754448826348,-5248.2,0.0003863,14]
[377597649,1754448826358,-400.0,0.0003863,14]
[377597650,1754448826367,-463.8,0.0003863,14]
[377597651,1754448826376,-2409.79,0.0003863,14]
[377597652,1754448826385,-400.0,0.0003863,14]
[377597653,1754448826394,-400.0,0.0003863,14]
[377597654,1754448826404,-1930.39,0.0003863,14]
[377597655,1754448826413,-465.73,0.0003863,14]
[377597656,1754448826423,-919.64,0.0003863,14]
[377597657,1754448826432,-1276.5,0.0003863,14]
[377597658,1754448826441,-481.93,0.0003863,14]
[377597659,1754448826451,-680.58,0.0003863,14]
[377597660,1754448826460,-2002.8,0.0003863,14]
[377597661,1754448826469,-1671.93,0.0003863,14]
[377597662,1754448826479,-1784.3,0.0003863,14]
[377597663,1754448826488,-400.0,0.0003863,14]
[377597664,1754448826497,-3610.35,0.0003863,14]
[377597665,1754448826506,-1873.43,0.0003863,14]
[377597666,1754448826515,-400.0,0.0003863,14]
[377597667,1754448826524,-1790.5,0.0003863,14]
[377597668,1754448826534,-1409.58,0.0003863,14]
[377597669,1754448826543,-589.06,0.0003863,14]
[377597670,1754448826552,-493.42,0.0003863,14]
[377597671,1754448826561,-769.03,0.0003863,14]
[377597672,1754448826570,-400.0,0.0003863,14]
[377597673,1754448826580,-1966.76,0.0003863,14]
[377597674,1754448826590,-446.21,0.0003863,14]
[377597675,1754448826600,-1081.98,0.0003863,14]
[377597676,1754448826609,-1264.89,0.0003863,14]
[377597677,1754448826618,-974.88,0.0003863,14]
[377597678,1754448826628,-662.34,0.0003863,14]
[377597679,1754448826637,-400.0,0.0003863,14]
[377597680,1754448826647,-2193.87,0.0003863,14]
[377597681,1754448826656,-950.01,0.0003863,14]
[377597682,1754448826666,-861.94,0.0003863,14]
[377597683,1754448826675,-2313.76,0.0003863,14]
[377597684,1754448826684,-2151.64,0.0003863,14]
[377597685,1754448826694,-433.2,0.0003863,14]
[377597686,1754448826703,-2093.1,0.0003863,14]
[377597687,1754448826713,-2798.78,0.0003863,14]
[377597688,1754448826723,-400.0,0.0003863,14]
[377597689,1754448826733,-400.0,0.0003863,14]
[377597690,1754448826743,-1069.38,0.0003863,14]
[377597691,1754448826752,-1990.46,0.0003863,14]
[377597692,1754448826762,-825.71,0.0003863,14]
[377597693,1754448826771,-1160.89,0.0003863,14]
[377597694,1754448826781,-365.20331465,0.0003863,14]
[377597695,1754448826791,-552.31,0.0003863,14]
[377597696,1754448826800,-400.0,0.0003863,14]
[377597697,1754448826809,-2248.31,0.0003863,14]
[377597698,1754448826819,-534.6,0.0003863,14]
[377597699,1754448826828,-2830.73,0.0003863,14]
[377597700,1754448826838,-400.0,0.0003863,14]
[377597701,1754448826847,-400.0,0.0003863,14]
[377597702,1754448826857,-400.0,0.0003863,14]
[377597703,1754448826867,-877.07,0.0003863,14]
[377597704,1754448826877,-636.63,0.0003863,14]
[377597705,1754448826887,-1151.11,0.0003863,14]
[377597706,1754448826899,-2866.67,0.0003863,14]
[377597707,1754448826911,-1232.95,0.0003863,14]
[377597708,1754448826922,-404.16,0.0003863,14]
[377597709,1754448826932,-663.46,0.0003863,14]
[377597710,1754448826943,-1463.25,0.0003863,14]
[377597711,1754448826953,-506.01,0.0003863,14]
[377597712,1754448826962,-2812.46,0.0003863,14]
[377597713,1754448826972,-2179.89,0.0003863,14]
[377597714,1754448826982,-1734.55,0.0003863,14]
[377597715,1754448826992,-4617.44,0.0003863,14]
[377597716,1754448827001,-400.0,0.0003863,14]
[377597717,1754448827011,-2023.55,0.0003863,14]
[377597718,1754448827020,-3963.12,0.0003863,14]
[377597719,1754448827030,-400.0,0.0003863,14]
[377597720,1754448827040,-2092.3,0.0003863,14]
[377597721,1754448827050,-2294.7,0.0003863,14]
[377597722,1754448827059,-523.66,0.0003863,14]
[377597723,1754448827069,-534.1,0.0003863,14]
[377597724,1754448827078,-1684.51,0.0003863,14]
[377597725,1754448827088,-3017.99,0.0003863,14]
[377597726,1754448827099,-1056.52,0.0003863,14]
[377597727,1754448827109,-586.88,0.0003863,14]
[377597728,1754448827118,-914.87,0.0003863,14]
[377597729,1754448827128,-435.03,0.0003863,14]
[377597730,1754448827139,-933.36,0.0003863,14]
[377597731,1754448827150,-611.39,0.0003863,14]
[377597732,1754448827161,-1545.14,0.0003863,14]
[377597733,1754448827174,-400.0,0.0003863,14]
[377597734,1754448827185,-1534.85,0.0003863,14]
[377597735,1754448827196,-796.41,0.0003863,14]
[377597736,1754448827208,-400.0,0.0003863,14]
[377597737,1754448827218,-1665.11,0.0003863,14]
[377597738,1754448827229,-1954.64,0.0003863,14]
[377597739,1754448827239,-1365.89,0.0003863,14]
[377597740,1754448827249,-2159.33,0.0003863,14]
[377597741,1754448827260,-1952.38,0.0003863,14]
[377597742,1754448827271,-5160.74,0.0003863,14]
[377597743,1754448827281,-392.37460978,0.0003863,14]
[377597744,1754448827292,-1216.69,0.0003863,14]
[377597745,1754448827302,-1829.55,0.0003863,14]
[377597746,1754448827311,-400.0,0.0003863,14]
[377597747,1754448827324,-2121.64,0.0003863,14]
[377597748,1754448827333,-2523.11,0.0003863,14]
[377597749,1754448827342,-945.39,0.0003863,14]
[377597750,1754448827351,-2518.04,0.0003863,14]
[377597751,1754448827361,-859.36,0.0003863,2]
[377597752,1754448827370,-2978.88,0.0003863,14]
[377597753,1754448827379,-793.99,0.0003863,14]
[377597754,1754448827388,-833.08,0.0003863,14]
[377597755,1754448827398,-400.0,0.0003863,14]
[377597756,1754448827407,-532.72,0.0003863,14]
[377597757,1754448827416,-1289.03,0.0003863,14]
[377597758,1754448827425,-2721.87,0.0003863,14]
[377597759,1754448827435,-400.0,0.0003863,14]
[377597760,1754448827444,-403.1346197,0.0003863,14]
[377597761,1754448827454,-3987.14,0.0003863,14]
[377597762,1754448827464,-601.08,0.0003863,14]
[377597763,1754448827473,-1073.41,0.0003863,14]
[377597764,1754448827483,-412.5,0.0003863,14]
[377597765,1754448827492,-365.67607417,0.0003863,14]
[377597766,1754448827502,-400.0,0.0003863,14]
[377597767,1754448827511,-400.0,0.0003863,14]
[377597768,1754448827520,-2539.32,0.0003863,14]
[377597769,1754448827529,-3437.75,0.0003863,14]
[377597770,1754448827539,-2655.03,0.0003863,14]
[377597771,1754448827548,-500.14,0.0003863,14]
[377597772,1754448827557,-1000.0,0.0003863,30]
[377597773,1754448827566,-400.0,0.0003863,14]
[377597774,1754448827575,-1245.68,0.0003863,14]
[377597775,1754448827584,-400.0,0.0003863,14]
[377597776,1754448827594,-828.5,0.0003863,14]
[377597777,1754448827602,-3583.37,0.0003863,14]
[377597778,1754448827611,-788.77,0.0003863,14]
[377597779,1754448827621,-2735.46,0.0003863,14]
[377597780,1754448827631,-4387.31,0.0003863,14]
[377597781,1754448827640,-1688.61,0.0003863,14]
[377597782,1754448827650,-3134.6,0.0003863,14]
[377597783,1754448827659,-406.24,0.0003863,14]
[377597784,1754448827668,-400.0,0.0003863,14]
[377597785,1754448827677,-3166.75,0.0003863,14]
[377597786,1754448827686,-735.52,0.0003863,14]
[377597787,1754448827696,-400.0,0.0003863,14]
[377597788,1754448827705,-2255.41,0.0003863,14]
[377597789,1754448827714,-2297.5,0.0003863,14]
[377597790,1754448827723,-741.97,0.0003863,14]
[377597791,1754448827733,-654.96,0.0003863,14]
[377597792,1754448827881,-1206.25,0.0003863,14]
[377597793,1754448827891,-3216.0,0.0003863,14]
[377597794,1754448827902,-1381.51,0.0003863,14]
[377597795,1754448827912,-74281.09,0.0003863,14]
[377597796,1754448827921,-2322.06,0.0003863,14]
[377597797,1754448827931,-841.14,0.0003863,14]
[377597798,1754448827940,-2750.06,0.0003863,14]
[377597799,1754448827952,-1570.84,0.0003863,14]
[377597800,1754448827964,-1828.82,0.0003863,14]
[377597801,1754448827976,-400.0,0.0003863,14]
[377597802,1754448827987,-1492.94,0.0003863,14]
[377597803,1754448827997,-434.35,0.0003863,14]
[377597804,1754448828007,-761.7,0.0003863,14]
[377597805,1754448828016,-260.49032216,0.0003863,14]
[377597806,1754448828026,-519.39,0.0003863,14]
[377597807,1754448828035,-163.14438742,0.0003863,14]
[377597808,1754448828044,-1961.2,0.0003863,14]
[377597809,1754448828053,-3362.96,0.0003863,14]
[377597810,1754448828063,-2855.56,0.0003863,14]
[377597811,1754448828073,-2258.55,0.0003863,14]
[377597812,1754448828082,-833.52,0.0003863,14]
[377597813,1754448828091,-2875.37,0.0003863,14]
[377597814,1754448828100,-2733.42,0.0003863,14]